[Event "Portugal-ch Seniors-50 2022"]
[Site "Atouguia da Baleia"]
[Date "2022.06.18"]
[Round "4.5"]
[White "Catarro, Jose Joao Dias"]
[Black "Seia, Joao Manuel"]
[Result "1-0"]
[ECO "D00"]
[WhiteElo "1833"]
[BlackElo "1657"]
[Annotator "NA RC"]
[PlyCount "107"]
[EventDate "2022.06.09"]
[EventType "swiss"]
[EventCountry "POR"]
[SourceTitle "playchess.com"]
[Source "ChessBase"]
[SourceQuality "1"]
[TimeControl "5400+30"]

1. d4 {[%emt 0:00:03]} d5 {[%emt 0:00:02]} 2. Bf4 {[%emt 0:00:12]} e6 {[%emt 0:01:05]} 3. e3 {[%emt 0:00:30]} Nf6 {[%emt 0:00:22]} 4. Bd3 {[%emt 0:01:42]} c5 {[%emt 0:00:48]} 5. c3 {[%emt 0:00:19]} cxd4 {[%emt 0:02:15]} 6. exd4 Be7 {[%emt 0:02:14]} 7. Nf3 {[%emt 0:00:41]} O-O {[%emt 0:00:30]} 8. O-O {[%emt 0:00:56]} Re8 {[%emt 0:00:45]} 9. Nbd2 {[%emt 0:01:07]} b6 {[%emt 0:02:58]} 10. Ne5 {[%emt 0:04:48]} Bb7 {[%emt 0:06:25]} 11. Qf3 {[%emt 0:08:20]} Nbd7 {[%emt 0:04:22]} 12. Qh3 {[%emt 0:02:11]} Nf8 {[%emt 0:05:46]} 13. Bb5 {[%emt 0:04:07]} N6d7 {[%emt 0:01:39]} 14. Rae1 {[%emt 0:03:26]} a6 {[%emt 0:00:19]} 15. Nc6 {[%emt 0:00:36]} Bxc6 {[%emt 0:01:18]} 16. Bxc6 {[%emt 0:00:05]} Rc8 {[%emt 0:00:09]} 17. Bb7 {[%emt 0:00:40]} Ng6 {[%emt 0:11:16]} 18. Bg3 {[%emt 0:01:37]} Bg5 {[%emt 0:04:23]} 19. Nf3 {[%emt 0:00:49]} Rc4 {[%emt 0:00:26]} 20. Bxa6 {[%emt 0:01:14]} Ra4 {[%emt 0:03:24]} 21. Bb5 {[%emt 0:00:23]} Rxa2 {[%emt 0:00:49]} 22. Bxd7 {[%emt 0:01:18]} Qxd7 {[%emt 0:03:16]} 23. Nxg5 {[%emt 0:00:12]} h6 {[%emt 0:00:03]} 24. Nf3 {[%emt 0:00:50]} Rxb2 {[%emt 0:00:47]} 25. Ne5 {[%emt 0:02:18]} Qb5 {[%emt 0:01:16]} 26. Nxg6 {[%emt 0:00:43]} fxg6 {[%emt 0:00:12]} 27. Qg4 {[%emt 0:02:39]} Kh7 {[%emt 0:03:00]} 28. h4 {[%emt 0:00:35]} h5 {[%emt 0:01:22]} 29. Qf3 {[%emt 0:03:28]} Qd7 {[%emt 0:05:49]} 30. Rb1 {[%emt 0:02:14]} Qb5 {[%emt 0:01:57]} 31. Rxb2 {[%emt 0:00:32]} Qxb2 {[%emt 0:00:02]} 32. Re1 {[%emt 0:02:44]} Rc8 {[%emt 0:02:41]} 33. Re3 {[%emt 0:00:22]} b5 {[%emt 0:01:35]} 34. Bd6 {[%emt 0:00:58]} Ra8 {[%emt 0:04:34]} 35. Qf7 {[%emt 0:01:12]} Qa1+ {[%emt 0:03:45]} 36. Kh2 {[%emt 0:00:17]} Ra7 {[%emt 0:00:18]} 37. Qxe6 {[%emt 0:00:32]} Qf1 {[%emt 0:00:27]} 38. Kg3 {[%emt 0:08:42]} Ra6 {[%emt 0:05:52]} 39. Qxd5 {[%emt 0:00:40]} Qd1 {[%emt 0:00:56]} 40. Rf3 {[%emt 0:01:05]} Ra7 {[%emt 0:02:11]} 41. Qxb5 {[%emt 0:01:13]} Kh6 {[%emt 0:04:20]} 42. Qd3 {[%emt 0:03:18]} Qa4 {[%emt 0:00:37]} 43. c4 {[%emt 0:02:07]} Qd7 44. Qd2+ Kh7 {[%emt 0:00:50]} 45. Qf4 {[%emt 0:09:34]} Ra6 {[%emt 0:00:30]} 46. c5 {[%emt 0:00:59]} Ra7 {[%emt 0:02:26]} 47. Re3 {[%emt 0:00:50]} Qc8 {[%emt 0:01:04]} 48. f3 {[%emt 0:00:24]} Qd8 {[%emt 0:02:06]} 49. d5 {[%emt 0:01:03]} Qa5 {[%emt 0:01:08]} 50. Qe4 {[%emt 0:01:02]} Qd2 {[%emt 0:00:57]} 51. Qd3 {[%emt 0:00:26]} Qb2 {[%emt 0:00:39]} 52. Re6 {[%emt 0:01:15]} Ra8 {[%emt 0:03:37]} 53. Be5 {[%emt 0:00:21]} Qc1 {[%emt 0:00:27]} 54. Qxg6+ {[%emt 0:00:26]} 1-0

[Event "Portugal-ch Seniors-50 2022"]
[Site "Atouguia da Baleia"]
[Date "2022.06.18"]
[Round "4.6"]
[White "Da Silva, Reinaldo S.B."]
[Black "Fernandes, Alberto"]
[Result "1-0"]
[ECO "A05"]
[WhiteElo "2340"]
[BlackElo "2094"]
[Annotator "TA"]
[PlyCount "61"]
[EventDate "2022.06.09"]
[EventType "swiss"]
[EventCountry "POR"]
[SourceTitle "playchess.com"]
[Source "ChessBase"]
[SourceQuality "1"]
[TimeControl "5400+30"]

{[%evp 16,61,14,0,12,15,10,-5,52,54,57,64,68,68,55,0,136,-20,133,126,125,117,126,110,115,103,1038,761,1041,487,461,0,1033,1033,969,654,780,771,765,727,923,915,817,808,1035,193,1027,-779]} 1. Nf3 Nf6 2. e3 e6 3. b3 Be7 4. d4 b6 5. Bd3 Bb7 6. Nbd2 d5 7. Bb2 O-O 8. O-O c5 9. Qe2 Ne4 {D05: Colle System with ...e6.} 10. Rfd1 Nd7 11. Ne5 {[#]} Ndf6 $146 (11... Nxe5 $11 12. dxe5 Nxd2) ({Predecessor:} 11... Nxd2 12. Rxd2 Nxe5 13. dxe5 Qc7 14. c4 f6 15. cxd5 exd5 16. Qh5 f5 17. Bxf5 Rxf5 18. Qxf5 Bc8 19. e6 Bf8 20. Qxd5 Bb7 21. Qd7 Qxd7 22. Rxd7 Bc6 23. Rc7 {1-0 (23) Mamedjarova,Z (2278)-Borisova,E (2344) Moscow 2019}) 12. Bxe4 $14 dxe4 13. dxc5 {[#] Threatens to win with c6.} Qc7 {Prevents c6.} 14. cxb6 {White is more active.} (14. c6 $5 Bxc6 15. Qc4 $16 (15. Nxc6 Qxc6 16. Nc4 Rfd8 $11)) 14... axb6 15. Ng4 (15. a4 $14) 15... Qxc2 (15... Nd7 $11) 16. Bxf6 $2 (16. Nxf6+ $16 Bxf6 17. Bxf6 gxf6 18. Qg4+ Kh8 19. Nc4) 16... Bxf6 $2 ({Black should play} 16... gxf6 $11 17. Rac1 Qxa2) 17. Nxf6+ $16 gxf6 18. Rac1 Qxa2 19. Qg4+ Kh8 20. Qh4 Rg8 $2 {[%mdl 8192]} (20... Rad8 $16) 21. Qxf6+ $18 Rg7 22. Ra1 (22. Nc4 $142 {White wants to mate with Ne5.} Qe2 23. Rd8+ Rxd8 24. Qxd8+ Rg8 25. Qf6+ Rg7 26. Ne5) 22... Qc2 23. Rac1 (23. Nc4 $142 Rxa1 24. Rxa1) 23... Qa2 $1 24. Nc4 {[%cal Bd2c4,Bc4e5,Be5d7,Bd7b6][%mdl 32] [#] Against Qa5. Threatening mate with Ne5.} Bd5 25. Ne5 {Rc7 would kill now.} Kg8 26. Rc7 {[%cal Re5f7] Against Qa7} Rf8 27. Rdc1 {[%cal Oc7f7] White threatens Rxf7! and mate.} Qa8 28. Nd7 {[%csl LRb6,LRf8]} Re8 29. Nxb6 Qb8 30. R7c5 $2 Qd8 (30... Qxb6 $2 31. Rc8 (31. Rxd5 Rg6 $16) 31... Qb8 32. Rxb8 Rxb8 33. b4 $18) (30... Rg6 31. Nxd5 exd5) 31. Rc7 $4 {[%mdl 40960] Weighted Error Value: White=1.27/Black=0.73. Loss on time!?} 1-0

[Event "Portugal-ch Seniors-50 2022"]
[Site "Atouguia da Baleia"]
[Date "2022.06.18"]
[Round "4.7"]
[White "Arantes, Carlos Eduardo Gonca"]
[Black "Galvao, Henrique"]
[Result "0-1"]
[ECO "A20"]
[WhiteElo "1722"]
[BlackElo "2118"]
[Annotator "NA RC"]
[PlyCount "50"]
[EventDate "2022.06.09"]
[EventType "swiss"]
[EventCountry "POR"]
[SourceTitle "playchess.com"]
[Source "ChessBase"]
[SourceQuality "1"]
[TimeControl "5400+30"]

1. c4 {[%emt 0:00:13]} e5 {[%emt 0:00:13]} 2. g3 {[%emt 0:00:23]} Nf6 {[%emt 0:01:48]} 3. Bg2 {[%emt 0:00:37]} c6 {[%emt 0:00:07]} 4. Nc3 {[%emt 0:03:23]} Bb4 {[%emt 0:01:58]} 5. a3 {[%emt 0:00:58]} Bxc3 {[%emt 0:00:22]} 6. bxc3 {[%emt 0:00:03]} d5 {[%emt 0:00:16]} 7. cxd5 {[%emt 0:00:20]} cxd5 {[%emt 0:00:08]} 8. d3 {[%emt 0:00:25]} h6 {[%emt 0:00:16]} 9. Nf3 {[%emt 0:02:54]} Nc6 {[%emt 0:00:13]} 10. O-O {[%emt 0:01:21]} O-O {[%emt 0:00:08]} 11. d4 {[%emt 0:03:22]} e4 {[%emt 0:02:24]} 12. Ne5 {[%emt 0:01:29]} Re8 {[%emt 0:00:31]} 13. c4 {[%emt 0:02:36]} dxc4 {[%emt 0:03:01]} 14. Nxc6 {[%emt 0:00:39]} bxc6 {[%emt 0:00:09]} 15. e3 {[%emt 0:03:11]} Bg4 {[%emt 0:03:23]} 16. f3 {[%emt 0:01:52]} exf3 {[%emt 0:06:09]} 17. Bxf3 {[%emt 0:01:17]} Bxf3 {[%emt 0:00:08]} 18. Rxf3 {[%emt 0:02:02]} Qd5 {[%emt 0:07:21]} 19. Bd2 {[%emt 0:00:35]} Ne4 {[%emt 0:01:12]} 20. Bb4 {[%emt 0:01:11]} Ng5 {[%emt 0:02:08]} 21. Kf2 {[%emt 0:02:47]} Rab8 {[%emt 0:01:58]} 22. h4 {[%emt 0:00:51]} Ne4+ {[%emt 0:03:28]} 23. Kg1 {[%emt 0:02:00]} a5 {[%emt 0:00:27]} 24. Be1 {[%emt 0:00:23]} Rb2 {[%emt 0:02:18]} 25. Rf4 {[%emt 0:00:20]} Nxg3 {[%emt 0:03:19]} 0-1

[Event "Portugal-ch Seniors-50 2022"]
[Site "Atouguia da Baleia"]
[Date "2022.06.18"]
[Round "4.8"]
[White "Godinho Marques, Pedro"]
[Black "Cavadas, Jose"]
[Result "1-0"]
[ECO "D00"]
[WhiteElo "1838"]
[BlackElo "1382"]
[Annotator "NA RC"]
[PlyCount "75"]
[EventDate "2022.06.09"]
[EventType "swiss"]
[EventCountry "POR"]
[SourceTitle "playchess.com"]
[Source "ChessBase"]
[SourceQuality "1"]
[TimeControl "5400+30"]

1. d4 d5 2. Bf4 Nf6 3. e3 e6 4. Nf3 g6 5. c4 Bg7 6. Nbd2 O-O 7. h3 b6 8. Bd3 Bb7 9. Qc2 Nbd7 10. O-O Rc8 11. b4 c5 12. bxc5 bxc5 13. Rab1 Ba8 14. Qb3 cxd4 15. exd4 dxc4 16. Bxc4 Nb6 17. Ba6 Bd5 18. Qd3 Ra8 19. Qa3 Ne4 $11 20. Nxe4 Bxe4 21. Rbd1 Bxf3 22. Qxf3 Nd5 23. Bb7 Nxf4 24. Bxa8 Nxh3+ 25. gxh3 Qxa8 26. Qxa8 Rxa8 27. d5 e5 28. Rc1 h5 29. d6 Bf6 30. Rc7 Rd8 31. Rd1 Kf8 32. Rxa7 g5 33. a4 g4 34. hxg4 hxg4 35. a5 e4 36. a6 Ke8 37. Rb7 Be5 38. Re7+ 1-0

[Event "Portugal-ch Seniors-50 2022"]
[Site "Atouguia da Baleia"]
[Date "2022.06.18"]
[Round "4.9"]
[White "Tavares, Antonio Americo"]
[Black "Pinto Neto, Antonio de Padua"]
[Result "1-0"]
[ECO "D38"]
[WhiteElo "1933"]
[BlackElo "1924"]
[Annotator "NA RC"]
[PlyCount "65"]
[EventDate "2022.06.09"]
[EventType "swiss"]
[EventCountry "POR"]
[SourceTitle "playchess.com"]
[Source "ChessBase"]
[SourceQuality "1"]
[TimeControl "5400+30"]

1. d4 {[%emt 0:00:04]} Nf6 {[%emt 0:00:07]} 2. Nf3 {[%emt 0:00:05]} d5 {[%emt 0:00:09]} 3. c4 {[%emt 0:00:17]} e6 {[%emt 0:00:18]} 4. Nc3 {[%emt 0:01:25]} Bb4 {[%emt 0:00:11]} 5. Bd2 {[%emt 0:03:04]} O-O {[%emt 0:00:55]} 6. e3 {[%emt 0:00:06]} b6 {[%emt 0:07:15]} 7. Bd3 {[%emt 0:02:33]} Bb7 {[%emt 0:00:39]} 8. O-O {[%emt 0:02:24]} c5 {[%emt 0:18:30]} 9. a3 {[%emt 0:10:09]} Bxc3 {[%emt 0:00:29]} 10. Bxc3 {[%emt 0:01:25]} dxc4 {[%emt 0:03:28]} 11. Bxc4 {[%emt 0:00:03]} Ne4 {[%emt 0:00:34]} 12. Qe2 {[%emt 0:08:32]} Nxc3 {[%emt 0:02:08]} 13. bxc3 {[%emt 0:00:02]} Qe7 {[%emt 0:02:11]} 14. Bd3 {[%emt 0:04:32]} Nd7 {[%emt 0:02:56]} 15. e4 {[%emt 0:04:17]} a6 {[%emt 0:10:05]} 16. a4 {[%emt 0:02:11]} Kh8 {[%emt 0:01:03]} 17. h3 {[%emt 0:08:02]} Qd8 {[%emt 0:00:36]} 18. Rfd1 {[%emt 0:05:15]} f6 {[%emt 0:03:32]} 19. Bc4 {[%emt 0:09:51]} Qe7 {[%emt 0:00:36]} 20. Re1 {[%emt 0:01:48]} Rfe8 {[%emt 0:02:30]} 21. Bd3 {[%emt 0:00:41]} e5 {[%emt 0:01:12]} 22. d5 {[%emt 0:01:14]} Qd6 {[%emt 0:00:54]} 23. c4 {[%emt 0:02:13]} Reb8 {[%emt 0:02:10]} 24. Nh4 {[%emt 0:01:06]} g6 {[%emt 0:02:18]} 25. Qe3 {[%emt 0:00:18]} Rg8 {[%emt 0:01:11]} 26. Reb1 {[%emt 0:01:05]} a5 {[%emt 0:01:01]} 27. g3 {[%emt 0:00:25]} Raf8 {[%emt 0:02:53]} 28. Kh2 {[%emt 0:01:46]} Bc8 {[%emt 0:00:23]} 29. Rb2 {[%emt 0:05:04]} Rf7 {[%emt 0:01:44]} 30. Rab1 {[%emt 0:00:27]} Kg7 {[%emt 0:00:38]} 31. Be2 {[%emt 0:02:14]} Kf8 {[%emt 0:02:09]} 32. Bg4 {[%emt 0:00:09]} h5 {[%emt 0:00:21]} 33. Be6 {[%emt 0:00:41]} 1-0

[Event "Portugal-ch Seniors-50 2022"]
[Site "Atouguia da Baleia"]
[Date "2022.06.19"]
[Round "5.6"]
[White "Godinho Marques, Pedro"]
[Black "Da Silva, Reinaldo S.B."]
[Result "0-1"]
[ECO "A45"]
[WhiteElo "1838"]
[BlackElo "2340"]
[Annotator "TA"]
[PlyCount "68"]
[EventDate "2022.06.09"]
[EventType "swiss"]
[EventCountry "POR"]
[SourceTitle "playchess.com"]
[Source "ChessBase"]
[SourceQuality "1"]
[TimeControl "5400+30"]

{[%evp 10,68,29,21,35,25,37,14,42,28,29,36,50,43,39,47,65,64,66,58,64,55,75,46,67,69,74,31,32,39,30,29,49,52,47,0,8,0,7,-67,-67,-84,-76,-51,-58,-127,-80,-135,-133,-267,-262,-460,-234,-234,-227,-301,-297,-752,-726,-1161,-1102]} 1. d4 Nf6 2. Bf4 g6 3. e3 Bg7 4. Nf3 c5 5. c3 cxd4 6. exd4 ({Reject} 6. Qxd4 d6 7. Qd1 O-O $15) 6... d6 {A48: 1 d4 Nf6 2 Nf3 g6: Torre, London and Colle Systems.} 7. Bd3 {[#]} Qb6 $146 ({Predecessor:} 7... O-O 8. O-O Nc6 9. Re1 Nh5 10. Bg5 h6 11. Bh4 Nf4 12. Bc2 Qb6 13. d5 Nxd5 14. Bxg6 Qxb2 15. Qxd5 Qxa1 16. Bxe7 Nxe7 17. Rxe7 {½-½ (52) Fahrner,K (2370)-Pilaj,H (2355) Austria 2013}) 8. Qc2 Bg4 {The position is equal.} 9. Nbd2 Nc6 10. h3 Bxf3 11. Nxf3 Rc8 12. Qb3 Qxb3 13. axb3 a6 14. O-O {[%cal Bh1f1,Bf1e1,Be1e2][%mdl 32]} O-O 15. Rfe1 Rfe8 16. Re2 d5 17. b4 e6 18. b5 axb5 19. Bxb5 Ra8 20. Ree1 Ne4 21. Ne5 Bxe5 22. dxe5 Nc5 23. Be3 {This bishop pair is nice.} Nb3 24. Ra3 (24. Ra4 $11) 24... Rxa3 $15 25. bxa3 Ra8 26. a4 Nxe5 27. f4 (27. Rb1 $15 Na5 28. Bd4) 27... Nc6 ({Black should play} 27... Nc4 28. Rb1 Nbd2 29. Bxd2 Nxd2) 28. Rb1 {[#]} (28. g4 $142) 28... Nca5 $1 $17 29. c4 {This move loses the game for White.} (29. Bf2 $17 {might work better.}) 29... dxc4 $19 {...Rc8 is the strong threat.} 30. Kf2 $2 (30. Bb6 {was called for.}) 30... c3 (30... Rc8 $142 {aiming for ...c3.} 31. f5 exf5) 31. Bd3 {[#]} Rd8 $1 32. Ke2 Nd4+ 33. Kd1 $2 (33. Bxd4 Rxd4 34. Ke3 Rxa4 35. Bc2) 33... Nf5 34. Ke2 Ng3+ {Weighted Error Value: White=0.65/Black=0.17 (very precise)} 0-1

[Event "Portugal-ch Seniors-50 2022"]
[Site "Atouguia da Baleia"]
[Date "2022.06.19"]
[Round "5.7"]
[White "Galvao, Henrique"]
[Black "Fernandes, Alberto"]
[Result "0-1"]
[ECO "C84"]
[WhiteElo "2118"]
[BlackElo "2094"]
[Annotator "NA RC"]
[PlyCount "66"]
[EventDate "2022.06.09"]
[EventType "swiss"]
[EventCountry "POR"]
[SourceTitle "playchess.com"]
[Source "ChessBase"]
[SourceQuality "1"]
[TimeControl "5400+30"]

1. e4 {[%emt 0:00:44]} e5 {[%emt 0:00:12]} 2. Nf3 {[%emt 0:00:08]} Nc6 {[%emt 0:00:08]} 3. Bb5 {[%emt 0:00:05]} a6 {[%emt 0:00:09]} 4. Ba4 {[%emt 0:00:09]} Nf6 {[%emt 0:00:09]} 5. O-O {[%emt 0:00:14]} Be7 {[%emt 0:00:11]} 6. d4 {[%emt 0:00:14]} exd4 {[%emt 0:01:48]} 7. e5 {[%emt 0:00:25]} Ne4 {[%emt 0:00:44]} 8. Nxd4 {[%emt 0:00:26]} Nxd4 {[%emt 0:01:37]} 9. Qxd4 {[%emt 0:00:12]} Nc5 {[%emt 0:00:31]} 10. Nc3 {[%emt 0:00:25]} O-O {[%emt 0:03:51]} 11. Be3 {[%emt 0:00:59] 11.Bb3 is the modern continuation.} Nxa4 {[%emt 0:06:35]} 12. Qxa4 {[%emt 0:01:04]} d5 {[%emt 0:10:04]} 13. exd6 {[%emt 0:01:57]} Bxd6 {[%emt 0:00:48]} 14. Rad1 {[%emt 0:01:35]} Bd7 {[%emt 0:01:02]} 15. Qd4 {[%emt 0:00:35]} Bc6 {[%emt 0:01:39]} 16. Bf4 {[%emt 0:06:17]} Bxf4 {[%emt 0:04:56]} 17. Qxf4 {[%emt 0:00:07]} Qe7 {[%emt 0:16:51]} 18. Rfe1 {[%emt 0:00:46]} Qc5 {[%emt 0:00:19] [#]} 19. Qxc7 $146 {[%emt 0:05:20]} ({Predecessor:} 19. Re5 Qb6 20. b4 Rad8 21. Re7 Rxd1+ 22. Nxd1 Qb5 23. Ne3 Qe2 24. h4 {0-1 (33) Schulman,M-Dobrich,W Pointe Claire 1969}) 19... Qb4 {[%emt 0:00:20]} 20. Rd3 {[%emt 0:23:59]} Rac8 {[%emt 0:09:58]} 21. Qd6 {[%emt 0:06:49]} Rfe8 {[%emt 0:00:35]} 22. Red1 {[%emt 0:06:08]} (22. Qxb4 $2 Rxe1#) 22... Qxb2 {[%emt 0:00:38]} 23. Rg3 {[%emt 0:02:24]} Qxc2 {[%emt 0:03:06]} 24. h4 {[%emt 0:01:59]} Qf5 {[%emt 0:07:23]} 25. Rg5 $17 {[%emt 0:12:28]} Qe6 {[%emt 0:03:32]} 26. Qg3 {[%emt 0:00:13]} Qf6 {[%emt 0:03:03]} 27. Rd3 {[%emt 0:14:19]} h6 {[%emt 0:03:21]} 28. Rg4 {[%emt 0:01:33]} Rcd8 {[%emt 0:00:21]} 29. Rxd8 {[%emt 0:01:59]} Rxd8 {[%emt 0:00:11]} 30. Ne2 {[%emt 0:03:14]} Rd1+ {[%emt 0:03:46]} 31. Kh2 {[%emt 0:00:03]} Qa1 {[%emt 0:04:29]} 32. Qb8+ {[%emt 0:01:37]} Kh7 {[%emt 0:00:09]} 33. Nd4 {[%emt 0:00:03]} Bd7 {[%emt 0:06:19]} 0-1

[Event "Portugal-ch Seniors-50 2022"]
[Site "Atouguia da Baleia"]
[Date "2022.06.19"]
[Round "5.8"]
[White "Elias, Benjamim"]
[Black "Tavares, Antonio Americo"]
[Result "0-1"]
[ECO "A03"]
[WhiteElo "1818"]
[BlackElo "1933"]
[Annotator "TA"]
[PlyCount "92"]
[EventDate "2022.06.09"]
[EventType "swiss"]
[EventCountry "POR"]
[SourceTitle "playchess.com"]
[Source "ChessBase"]
[SourceQuality "1"]
[TimeControl "5400+30"]

{[%evp 10,92,-8,-10,0,-3,0,0,0,0,-1,-29,-18,-29,-24,-33,-27,-6,-17,-17,-13,-60,-70,-79,-28,-37,-33,-34,-37,-37,3,-3,-4,-9,0,-1,0,0,0,-166,-162,-158,-147,-192,-188,-198,-167,-255,-247,-246,-212,-243,-220,-375,-360,-394,-377,-473,-479,-466,-419,-727,-719,-1020,-991,-837,-973,-825,-808,-1539,-1248,-4918,-5010,-3745,-2729,-29978,-29979,-29979,-29980,-29985,-29973,-29985,-29986,-29987,-29984]} 1. f4 d5 2. e3 Nf6 3. Nf3 c5 4. b3 e6 5. Bb2 Bd6 6. Bb5+ Bd7 {A03: Bird's Opening with 1...d5.} 7. Qe2 a6 8. Bxd7+ Nbxd7 {The position is equal.} 9. O-O O-O 10. d3 Qc7 11. Nbd2 Rfe8 12. Rae1 b5 {[#]} 13. g3 $146 ({Predecessor:} 13. Nh4 Rac8 14. e4 dxe4 15. Nxe4 Nxe4 16. Qxe4 c4 17. dxc4 bxc4 18. Rd1 cxb3 19. cxb3 {0-1 (39) Harmsen,J (2190)-Flear,C (2225) Oisterwijk 1991}) 13... e5 14. fxe5 Nxe5 (14... Bxe5 {looks sharper.} 15. Nxe5 Nxe5 16. Rf5 Re6) 15. Bxe5 (15. Nh4 $11) 15... Bxe5 $15 16. Nxe5 Qxe5 (16... Rxe5 $17 17. Nf3 Re6) 17. Nf3 Qh5 18. Nh4 Qxe2 19. Rxe2 d4 20. e4 Ng4 21. Rf5 Rac8 22. Rd5 Ne3 23. Rd6 Re6 24. Nf5 {[#] White is on the road to losing.} (24. Rd7 $11 {and White stays safe.}) 24... Nxf5 $19 25. Rxe6 Nxg3 $1 ({Stronger than} 25... fxe6 26. exf5 exf5 27. Re6 $11) 26. Rg2 fxe6 27. Rxg3 {[%mdl 4096] Endgame KR-KR} h6 28. Kf2 (28. h4 $142) 28... Rf8+ 29. Ke2 Kh7 30. Rg1 Rf4 31. Rg2 $2 (31. a3) 31... g5 32. Rg1 Kg6 33. Rg2 h5 {[%cal Bh6h5,Bh5g4,Bg4g3,Bg3g2][%mdl 32]} 34. Rg1 g4 35. Rg2 (35. h3 $142) 35... Kg5 36. h3 Rf3 37. hxg4 hxg4 {[#] ...Kf4 is the strong threat.} 38. Rg1 Re3+ 39. Kd2 g3 40. Rf1 g2 41. Rg1 Rg3 42. Ke2 Kh4 {Black mates.} 43. Kf2 Kh3 44. a4 Rg8 45. axb5 axb5 46. Ra1 Kh2 {Weighted Error Value: White=0.80/Black=0.06 (flawless)} 0-1

[Event "Portugal-ch Seniors-50 2022"]
[Site "Atouguia da Baleia"]
[Date "2022.06.19"]
[Round "5.9"]
[White "Cavadas, Jose"]
[Black "Arantes, Carlos Eduardo Gonca"]
[Result "1-0"]
[ECO "D02"]
[WhiteElo "1382"]
[BlackElo "1722"]
[Annotator "NA RC"]
[PlyCount "122"]
[EventDate "2022.06.09"]
[EventType "swiss"]
[EventCountry "POR"]
[SourceTitle "playchess.com"]
[Source "ChessBase"]
[SourceQuality "1"]
[TimeControl "5400+30"]

1. d4 {[%emt 0:00:02]} d5 {[%emt 0:00:29]} 2. Nf3 {[%emt 0:00:07]} h6 {[%emt 0:01:22]} 3. c4 {[%emt 0:00:16]} e6 {[%emt 0:00:40]} 4. Nc3 {[%emt 0:00:05]} Nf6 {[%emt 0:00:47]} 5. c5 {[%emt 0:01:54]} b6 {[%emt 0:01:30]} 6. cxb6 {[%emt 0:07:15]} axb6 {[%emt 0:04:39]} 7. e3 {[%emt 0:01:39]} Bb4 {[%emt 0:03:33]} 8. Bd2 {[%emt 0:02:49]} O-O {[%emt 0:00:39]} 9. Bd3 {[%emt 0:02:09]} Nbd7 {[%emt 0:04:22]} 10. O-O {[%emt 0:00:45]} Ba6 {[%emt 0:00:44]} 11. Bxa6 {[%emt 0:04:52]} Rxa6 {[%emt 0:00:09]} 12. Qe2 {[%emt 0:01:33]} Qa8 {[%emt 0:01:23]} 13. Nb5 {[%emt 0:04:59]} Bd6 {[%emt 0:01:10]} 14. Nxd6 {[%emt 0:00:31]} cxd6 {[%emt 0:00:02]} 15. a3 {[%emt 0:00:16]} Qb7 {[%emt 0:01:52]} 16. Rac1 {[%emt 0:01:01]} Rc8 {[%emt 0:04:40]} 17. Rxc8+ {[%emt 0:03:15]} Qxc8 {[%emt 0:00:07]} 18. Rc1 {[%emt 0:00:11]} Qb7 {[%emt 0:00:24]} 19. Qb5 {[%emt 0:01:46]} Ra8 {[%emt 0:04:07]} 20. Bb4 {[%emt 0:01:55]} Rc8 {[%emt 0:01:34]} 21. Rxc8+ {[%emt 0:06:33]} Qxc8 {[%emt 0:00:07]} 22. Bc3 {[%emt 0:00:23]} Ne4 {[%emt 0:04:58]} 23. Be1 {[%emt 0:04:59]} Qc7 {[%emt 0:03:49]} 24. h3 {[%emt 0:00:28]} Ndf6 {[%emt 0:00:51]} 25. b4 {[%emt 0:08:03]} Nc3 {[%emt 0:05:47]} 26. Qa6 {[%emt 0:00:47]} Nfe4 {[%emt 0:00:51]} 27. a4 {[%emt 0:02:07]} Qc4 {[%emt 0:09:54]} 28. Qxb6 {[%emt 0:08:28]} Nxa4 {[%emt 0:01:22]} 29. Qb8+ {[%emt 0:00:35]} Kh7 {[%emt 0:00:12]} 30. b5 {[%emt 0:00:30]} Ng5 {[%emt 0:03:06]} 31. Nxg5+ {[%emt 0:02:50]} hxg5 {[%emt 0:00:03]} 32. b6 {[%emt 0:03:36]} Qc1 {[%emt 0:00:15]} 33. b7 {[%emt 0:02:30]} Qxe1+ {[%emt 0:00:19]} 34. Kh2 {[%emt 0:00:07]} Qxf2 {[%emt 0:02:28]} 35. Qxd6 {[%emt 0:02:46]} Qxe3 {[%emt 0:04:45]} 36. Qe5 {[%emt 0:03:26]} Qb3 {[%emt 0:04:55]} 37. b8=Q {[%emt 0:00:16]} Qxb8 {[%emt 0:00:17]} 38. Qxb8 {[%emt 0:00:16]} Nc3 {[%emt 0:00:29]} 39. Qb3 {[%emt 0:01:53]} Ne4 {[%emt 0:00:11]} 40. g4 {[%emt 0:01:17]} Kg6 {[%emt 0:01:00]} 41. Qb1 {[%emt 0:00:56]} Kf6 {[%emt 0:00:35]} 42. Qb8 {[%emt 0:01:02]} Nd2 {[%emt 0:00:47]} 43. Kg2 {[%emt 0:00:59]} Nc4 {[%emt 0:01:16]} 44. Kf2 {[%emt 0:01:38]} Kg6 {[%emt 0:00:18]} 45. Qd8 {[%emt 0:01:12]} Nd2 {[%emt 0:01:20]} 46. Ke2 {[%emt 0:01:46]} Ne4 {[%emt 0:00:21]} 47. Qc7 {[%emt 0:03:03]} Kf6 {[%emt 0:01:26]} 48. Qe5+ {[%emt 0:01:19]} Kg6 {[%emt 0:00:02]} 49. Ke3 {[%emt 0:03:34]} Nf6 {[%emt 0:00:50]} 50. Kd3 {[%emt 0:02:00]} Ne4 {[%emt 0:00:03]} 51. Qh2 {[%emt 0:02:44]} Nf6 {[%emt 0:01:05]} 52. Kc3 {[%emt 0:00:23]} Ne4+ {[%emt 0:00:42]} 53. Kb4 {[%emt 0:00:28]} Nf6 {[%emt 0:00:58]} 54. Kb5 {[%emt 0:00:10]} Ne4 {[%emt 0:00:17]} 55. Kc6 {[%emt 0:00:32]} Nf6 {[%emt 0:00:24]} 56. Kd6 {[%emt 0:00:37]} Kh6 {[%emt 0:00:37]} 57. Ke7 {[%emt 0:00:43]} Kg6 {[%emt 0:00:05]} 58. Qc2+ {[%emt 0:00:38]} Ne4 {[%emt 0:00:27]} 59. Qb1 {[%emt 0:00:13]} f5 {[%emt 0:01:45]} 60. Kxe6 {[%emt 0:00:27]} fxg4 {[%emt 0:00:17]} 61. Kxd5 {[%emt 0:00:31]} Kh6 {[%emt 0:00:01]} 1-0